[Event "Kupreichik Memorial Rapid 2019"]
[Site "Minsk"]
[Date "2019.08.16"]
[Round "4.21"]
[White "Vashchilov, Sergey"]
[Black "Kolosovskaya, Olga"]
[Result "1/2-1/2"]
[ECO "C11"]
[WhiteElo "2162"]
[BlackElo "1719"]
[Annotator "NA"]
[PlyCount "64"]
[EventDate "2019.08.15"]
[EventType "swiss"]
[EventCountry "BLR"]
[SourceTitle "playchess.com"]
[Source "ChessBase"]
[SourceQuality "1"]
[TimeControl "900+10"]

1. d4 {[%emt 0:00:00]} d5 {[%emt 0:00:00]} 2. Nc3 {[%emt 0:00:01]} Nf6 {[%emt 0:00:00]} 3. Bg5 {[%emt 0:00:05]} e6 {[%emt 0:00:43]} 4. e4 {[%emt 0:00:11]} dxe4 {[%emt 0:00:02]} 5. Nxe4 {[%emt 0:00:01]} Be7 {[%emt 0:00:06]} 6. Bxf6 {[%emt 0:00:24]} Bxf6 {[%emt 0:00:21]} 7. c3 {[%emt 0:00:58]} O-O {[%emt 0:00:45]} 8. f4 {[%emt 0:01:32]} Bh4+ {[%emt 0:00:58]} 9. g3 {[%emt 0:00:28]} Be7 {[%emt 0:00:05]} 10. Nf3 {[%emt 0:00:26]} b6 {[%emt 0:02:49]} 11. Bd3 {[%emt 0:00:47]} Bb7 {[%emt 0:00:09]} 12. Qe2 {[%emt 0:00:11]} c5 {[%emt 0:01:32]} 13. dxc5 {[%emt 0:00:36]} bxc5 {[%emt 0:00:23]} 14. O-O-O {[%emt 0:02:27]} Qa5 {[%emt 0:00:18]} 15. Kb1 {[%emt 0:00:17]} Nd7 {[%emt 0:02:19]} 16. Rhe1 {[%emt 0:02:59]} Nf6 {[%emt 0:00:54]} 17. Ne5 {[%emt 0:00:50]} Rad8 {[%emt 0:03:05]} 18. Ng5 {[%emt 0:00:19]} Qb6 {[%emt 0:01:09]} 19. c4 {[%emt 0:02:22]} g6 {[%emt 0:00:08]} 20. h4 {[%emt 0:00:41]} Nh5 {[%emt 0:00:16]} 21. Qe3 {[%emt 0:01:30]} Bf6 {[%emt 0:01:29]} 22. Rd2 {[%emt 0:00:53]} Ng7 {[%emt 0:00:13]} 23. Ng4 {[%emt 0:00:19]} Bd4 {[%emt 0:00:09]} 24. Nh6+ {[%emt 0:00:17]} Kh8 {[%emt 0:00:03]} 25. Nhxf7+ {[%emt 0:00:13]} Rxf7 {[%emt 0:00:05]} 26. Nxf7+ {[%emt 0:00:01]} Kg8 {[%emt 0:00:01]} 27. Nh6+ {[%emt 0:00:05]} Kh8 {[%emt 0:00:40]} 28. Nf7+ {[%emt 0:00:21]} Kg8 {[%emt 0:00:01]} 29. Nh6+ {[%emt 0:00:09]} Kh8 {[%emt 0:00:01]} 30. Nf7+ {[%emt 0:00:04]} Kg8 {[%emt 0:00:01]} 31. Nh6+ Kf8 32. Qe2 Bc3 1/2-1/2

[Event "Kupreichik Memorial Rapid 2019"]
[Site "Minsk"]
[Date "2019.08.16"]
[Round "4.23"]
[White "Stanishevskij, Aleksandr"]
[Black "Veremeichik, Vladimir"]
[Result "0-1"]
[ECO "B31"]
[WhiteElo "1830"]
[BlackElo "2282"]
[Annotator "NA"]
[PlyCount "89"]
[EventDate "2019.08.15"]
[EventType "swiss"]
[EventCountry "BLR"]
[SourceTitle "playchess.com"]
[Source "ChessBase"]
[SourceQuality "1"]
[TimeControl "900+10"]

1. e4 {[%emt 0:00:00]} c5 {[%emt 0:00:00]} 2. Nf3 {[%emt 0:00:23]} Nc6 {[%emt 0:00:00]} 3. Bb5 {[%emt 0:00:08]} g6 {[%emt 0:00:00]} 4. O-O {[%emt 0:00:02]} Bg7 {[%emt 0:00:00]} 5. c3 {[%emt 0:00:27]} Nf6 {[%emt 0:00:00]} 6. Re1 {[%emt 0:00:25]} O-O {[%emt 0:00:01]} 7. d4 {[%emt 0:01:08]} d5 {[%emt 0:00:03]} 8. e5 {[%emt 0:00:52]} Ne4 {[%emt 0:00:01]} 9. Nbd2 {[%emt 0:00:17]} cxd4 {[%emt 0:00:06]} 10. cxd4 {[%emt 0:00:28]} Qb6 {[%emt 0:00:03]} 11. Bxc6 {[%emt 0:01:41]} Qxc6 {[%emt 0:00:02]} 12. Nxe4 {[%emt 0:00:49]} dxe4 {[%emt 0:00:02]} 13. Nd2 {[%emt 0:01:55]} Rd8 {[%emt 0:00:27]} 14. Rxe4 {[%emt 0:03:00]} Bf5 {[%emt 0:00:02]} 15. Re1 {[%emt 0:00:42]} Rxd4 {[%emt 0:00:09]} 16. Qb3 {[%emt 0:00:40]} Rad8 {[%emt 0:01:10]} 17. Nf1 {[%emt 0:00:48]} b6 {[%emt 0:01:23]} 18. Ng3 {[%emt 0:01:12]} Bc8 {[%emt 0:03:07]} 19. Bg5 {[%emt 0:00:53]} Be6 {[%emt 0:01:32]} 20. Qa3 {[%emt 0:00:38]} f6 {[%emt 0:00:58]} 21. exf6 exf6 22. Be3 {[%emt 0:01:07]} Ra4 {[%emt 0:00:32]} 23. Qe7 {[%emt 0:00:18]} Re8 {[%emt 0:00:05]} 24. Rac1 {[%emt 0:00:32]} Rxe7 {[%emt 0:01:10]} 25. Rxc6 Bxa2 26. h3 {[%emt 0:00:27]} Rc4 {[%emt 0:00:36]} 27. Rxc4 {[%emt 0:00:08]} Bxc4 {[%emt 0:00:01]} 28. Rc1 {[%emt 0:00:07]} Bb5 {[%emt 0:01:00]} 29. Bd4 {[%emt 0:00:14]} h5 {[%emt 0:00:40]} 30. Nf1 {[%emt 0:00:14]} Bxf1 {[%emt 0:00:23]} 31. Kxf1 {[%emt 0:00:01]} f5 {[%emt 0:00:01]} 32. Bxg7 Kxg7 {[%emt 0:00:01]} 33. Rc6 {[%emt 0:00:24]} h4 {[%emt 0:00:13]} 34. Rd6 {[%emt 0:00:04]} Kh6 {[%emt 0:00:09]} 35. Rc6 {[%emt 0:00:17]} Kg5 {[%emt 0:00:10]} 36. Rd6 {[%emt 0:00:06]} Re4 {[%emt 0:00:11]} 37. Rd2 {[%emt 0:00:30]} a5 {[%emt 0:00:03]} 38. f3 {[%emt 0:00:09]} Rb4 {[%emt 0:00:08]} 39. Kf2 {[%emt 0:00:02]} Kf4 {[%emt 0:00:02]} 40. Rc2 {[%emt 0:00:03]} b5 {[%emt 0:00:03]} 41. Rd2 {[%emt 0:00:12]} a4 {[%emt 0:00:01]} 42. Rc2 {[%emt 0:00:02]} Rc4 {[%emt 0:00:05]} 43. Rd2 {[%emt 0:00:03]} b4 {[%emt 0:00:01]} 44. Re2 {[%emt 0:00:16]} b3 {[%emt 0:00:09]} 45. Ke1 0-1

[Event "Kupreichik Memorial Rapid 2019"]
[Site "Minsk"]
[Date "2019.08.16"]
[Round "4.25"]
[White "Zverev, Lev"]
[Black "Tarasionak, Arseni"]
[Result "1-0"]
[ECO "B42"]
[WhiteElo "1881"]
[BlackElo "1209"]
[Annotator "NA"]
[PlyCount "35"]
[EventDate "2019.08.15"]
[EventType "swiss"]
[EventCountry "BLR"]
[SourceTitle "playchess.com"]
[Source "ChessBase"]
[SourceQuality "1"]
[TimeControl "900+10"]

1. e4 {[%emt 0:00:00]} c5 {[%emt 0:00:00]} 2. Nf3 {[%emt 0:00:00]} e6 {[%emt 0:00:00]} 3. d4 {[%emt 0:00:00]} cxd4 {[%emt 0:00:00]} 4. Nxd4 {[%emt 0:00:00]} a6 {[%emt 0:00:01]} 5. Bd3 {[%emt 0:00:05]} Nf6 {[%emt 0:00:02]} 6. O-O {[%emt 0:00:03]} Bc5 {[%emt 0:00:02]} 7. Nb3 {[%emt 0:00:07]} Be7 {[%emt 0:00:03]} 8. c4 {[%emt 0:00:05]} Nc6 {[%emt 0:00:07]} 9. Qe2 {[%emt 0:00:03]} O-O {[%emt 0:00:05]} 10. Nc3 {[%emt 0:00:07]} Ne5 {[%emt 0:00:17]} 11. Bc2 {[%emt 0:00:04]} Qc7 {[%emt 0:00:13]} 12. Bf4 {[%emt 0:00:23]} Bd6 {[%emt 0:01:08]} 13. Nd2 {[%emt 0:00:06]} Nxc4 {[%emt 0:00:16]} 14. Bxd6 {[%emt 0:00:06]} Nxd6 {[%emt 0:00:03]} 15. e5 {[%emt 0:00:01]} Nd5 {[%emt 0:00:39]} 16. exd6 {[%emt 0:00:06]} Nxc3 {[%emt 0:00:03]} 17. Qd3 {[%emt 0:00:06]} Ne2+ {[%emt 0:00:22]} 18. Kh1 {[%emt 0:00:01]} 1-0

[Event "Kupreichik Memorial Rapid 2019"]
[Site "Minsk"]
[Date "2019.08.16"]
[Round "4.26"]
[White "Kochetkov, Vitali"]
[Black "Kashtelyan, Valentin"]
[Result "1-0"]
[ECO "A05"]
[WhiteElo "2266"]
[BlackElo "1488"]
[Annotator "NA"]
[PlyCount "83"]
[EventDate "2019.08.15"]
[EventType "swiss"]
[EventCountry "BLR"]
[SourceTitle "playchess.com"]
[Source "ChessBase"]
[SourceQuality "1"]
[TimeControl "900+10"]

1. Nf3 {[%emt 0:02:39]} Nf6 {[%emt 0:00:00]} 2. d4 {[%emt 0:00:12]} e6 {[%emt 0:00:02]} 3. c4 {[%emt 0:00:06]} d5 {[%emt 0:00:05]} 4. g3 {[%emt 0:00:14]} c6 {[%emt 0:00:05]} 5. Qc2 {[%emt 0:00:20]} g6 {[%emt 0:00:16]} 6. Bg2 {[%emt 0:00:03]} Bg7 {[%emt 0:00:14]} 7. O-O {[%emt 0:00:06]} O-O {[%emt 0:00:03]} 8. Nbd2 {[%emt 0:00:26]} Nbd7 {[%emt 0:00:12]} 9. b3 {[%emt 0:00:40]} b5 {[%emt 0:00:44]} 10. e4 {[%emt 0:01:02]} dxe4 {[%emt 0:00:28]} 11. Nxe4 {[%emt 0:00:02]} Nxe4 {[%emt 0:00:02]} 12. Qxe4 {[%emt 0:00:03]} Bb7 {[%emt 0:00:03]} 13. Ba3 {[%emt 0:00:33]} Re8 {[%emt 0:00:41]} 14. Rad1 {[%emt 0:00:03]} Nf6 {[%emt 0:00:10]} 15. Qe3 {[%emt 0:00:24]} Ng4 {[%emt 0:01:02]} 16. Qf4 {[%emt 0:00:06]} Nf6 {[%emt 0:00:51]} 17. Ne5 {[%emt 0:00:08]} Rc8 {[%emt 0:00:22]} 18. g4 {[%emt 0:00:26]} Qc7 {[%emt 0:00:22]} 19. g5 {[%emt 0:01:08]} Nh5 {[%emt 0:00:23]} 20. Qe4 {[%emt 0:00:24]} Ba8 {[%emt 0:01:24]} 21. c5 {[%emt 0:00:32]} Bxe5 {[%emt 0:00:45]} 22. dxe5 {[%emt 0:00:07]} Ng7 {[%emt 0:00:06]} 23. Bf3 {[%emt 0:00:17]} Nf5 {[%emt 0:00:10]} 24. Bg4 {[%emt 0:00:03]} Bb7 {[%emt 0:00:17]} 25. Bxf5 {[%emt 0:00:10]} exf5 {[%emt 0:00:43]} 26. Qh4 {[%emt 0:00:48]} Qxe5 {[%emt 0:00:46]} 27. f3 {[%emt 0:02:31]} Rcd8 {[%emt 0:01:49]} 28. Qf2 Qf4 {[%emt 0:02:00]} 29. Bc1 {[%emt 0:01:21]} Qe5 {[%emt 0:01:20]} 30. Bb2 {[%emt 0:00:03]} Qe6 {[%emt 0:00:42]} 31. Bf6 {[%emt 0:00:16]} Rxd1 {[%emt 0:00:19]} 32. Rxd1 {[%emt 0:00:04]} h5 {[%emt 0:00:11]} 33. Bb2 {[%emt 0:01:18]} f4 {[%emt 0:01:43]} 34. Bc3 {[%emt 0:02:31]} Qf5 {[%emt 0:00:55]} 35. Qd4 {[%emt 0:00:03]} Qxg5+ {[%emt 0:00:11]} 36. Kh1 {[%emt 0:00:01]} Qh6 {[%emt 0:00:11]} 37. Rg1 {[%emt 0:00:07]} Qf8 {[%emt 0:00:51]} 38. Qd7 {[%emt 0:00:04]} Re2 {[%emt 0:00:10]} 39. Qxb7 {[%emt 0:00:10]} Qxc5 {[%emt 0:00:10]} 40. Ba1 {[%emt 0:00:11]} Re6 {[%emt 0:00:23]} 41. Qb8+ {[%emt 0:00:10]} Qf8 {[%emt 0:00:10]} 42. Qxf4 {[%emt 0:00:10]} 1-0

[Event "Kupreichik Memorial Rapid 2019"]
[Site "Minsk"]
[Date "2019.08.16"]
[Round "4.27"]
[White "Kalinin, Dmitry"]
[Black "Nikolaev, Dmitry"]
[Result "1-0"]
[ECO "A48"]
[WhiteElo "2119"]
[BlackElo "1677"]
[Annotator "NA"]
[PlyCount "65"]
[EventDate "2019.08.15"]
[EventType "swiss"]
[EventCountry "BLR"]
[SourceTitle "playchess.com"]
[Source "ChessBase"]
[SourceQuality "1"]
[TimeControl "900+10"]

1. Nf3 {[%emt 0:00:00]} Nf6 {[%emt 0:00:00]} 2. d4 {[%emt 0:00:00]} g6 {[%emt 0:00:00]} 3. c4 {[%emt 0:00:09]} Bg7 {[%emt 0:00:00]} 4. Nc3 {[%emt 0:00:05]} d5 {[%emt 0:00:11]} 5. cxd5 {[%emt 0:00:14]} Nxd5 {[%emt 0:00:01]} 6. Qb3 {[%emt 0:00:04]} Nxc3 {[%emt 0:00:09]} 7. bxc3 {[%emt 0:00:01]} c5 {[%emt 0:00:14]} 8. e3 {[%emt 0:00:23]} O-O {[%emt 0:00:08]} 9. Be2 {[%emt 0:00:43]} Nc6 {[%emt 0:01:22]} 10. O-O {[%emt 0:00:23]} cxd4 {[%emt 0:02:47]} 11. cxd4 {[%emt 0:00:18]} b6 {[%emt 0:00:06]} 12. Bb2 {[%emt 0:00:52]} Bb7 {[%emt 0:01:12]} 13. Rac1 {[%emt 0:01:03]} Na5 {[%emt 0:01:27]} 14. Qa4 {[%emt 0:00:48]} a6 {[%emt 0:02:17]} 15. Rfd1 {[%emt 0:01:16]} b5 {[%emt 0:00:29]} 16. Qb4 {[%emt 0:00:05]} Nc6 {[%emt 0:00:33]} 17. Qd2 {[%emt 0:00:12]} e6 {[%emt 0:00:22]} 18. e4 {[%emt 0:00:26]} Qb6 {[%emt 0:00:22]} 19. d5 {[%emt 0:00:52]} Bxb2 {[%emt 0:01:09]} 20. Qxb2 {[%emt 0:00:02]} exd5 {[%emt 0:00:01]} 21. exd5 {[%emt 0:00:04]} Na5 {[%emt 0:00:09]} 22. Ng5 {[%emt 0:02:21]} Rac8 {[%emt 0:00:39]} 23. Ne4 {[%emt 0:00:51]} f6 {[%emt 0:01:34]} 24. Rxc8 {[%emt 0:00:25]} Bxc8 {[%emt 0:00:02]} 25. d6 {[%emt 0:00:29]} Bf5 {[%emt 0:00:15]} 26. Nxf6+ {[%emt 0:00:12]} Rxf6 {[%emt 0:01:26]} 27. Qxf6 {[%emt 0:00:02]} Nc4 {[%emt 0:00:30]} 28. Bxc4+ {[%emt 0:00:21]} bxc4 {[%emt 0:00:02]} 29. Qe7 {[%emt 0:01:45]} c3 {[%emt 0:00:23]} 30. d7 {[%emt 0:00:14]} Bxd7 {[%emt 0:00:01]} 31. Qxd7 {[%emt 0:00:02]} c2 {[%emt 0:00:04]} 32. Qc8+ {[%emt 0:00:02]} Kg7 {[%emt 0:00:08]} 33. Qxc2 {[%emt 0:00:03]} 1-0

[Event "Kupreichik Memorial Rapid 2019"]
[Site "Minsk"]
[Date "2019.08.16"]
[Round "4.28"]
[White "Arlou, Valery"]
[Black "Spizharny, Mikhail"]
[Result "1/2-1/2"]
[ECO "D02"]
[WhiteElo "1759"]
[BlackElo "2079"]
[Annotator "NA"]
[PlyCount "78"]
[EventDate "2019.08.15"]
[EventType "swiss"]
[EventCountry "BLR"]
[SourceTitle "playchess.com"]
[Source "ChessBase"]
[SourceQuality "1"]
[TimeControl "900+10"]

1. d4 {[%emt 0:00:00]} Nf6 {[%emt 0:00:00]} 2. Nf3 {[%emt 0:00:00]} d5 {[%emt 0:00:00]} 3. Bf4 g6 {[%emt 0:00:06]} 4. h3 {[%emt 0:00:23]} Bg7 {[%emt 0:00:03]} 5. e3 O-O {[%emt 0:00:13]} 6. Bd3 {[%emt 0:00:09]} c5 {[%emt 0:00:06]} 7. c3 {[%emt 0:00:02]} b6 {[%emt 0:00:02]} 8. Ne5 {[%emt 0:01:05]} Bb7 {[%emt 0:00:07]} 9. Nd2 {[%emt 0:00:06]} Nc6 {[%emt 0:00:09]} 10. Nxc6 {[%emt 0:00:14]} Bxc6 {[%emt 0:00:02]} 11. Nf3 {[%emt 0:00:03]} Nd7 {[%emt 0:00:38]} 12. O-O {[%emt 0:00:29]} Re8 {[%emt 0:00:47]} 13. Rc1 {[%emt 0:03:12]} e5 {[%emt 0:01:27]} 14. dxe5 {[%emt 0:00:06]} Nxe5 {[%emt 0:00:03]} 15. Nxe5 {[%emt 0:00:09]} Bxe5 {[%emt 0:00:02]} 16. Bxe5 {[%emt 0:00:44]} Rxe5 {[%emt 0:00:02]} 17. Be2 {[%emt 0:00:48]} Qc7 {[%emt 0:02:10]} 18. Bf3 {[%emt 0:00:09]} Rd8 {[%emt 0:02:13]} 19. Qc2 {[%emt 0:01:38]} f5 {[%emt 0:01:09]} 20. Rfd1 {[%emt 0:00:57]} Re7 {[%emt 0:01:11]} 21. Qb3 {[%emt 0:03:05]} Red7 {[%emt 0:01:08]} 22. Rd2 {[%emt 0:00:05]} Rd6 {[%emt 0:02:18]} 23. Rcd1 {[%emt 0:00:07]} Qd7 {[%emt 0:00:02]} 24. Qa3 {[%emt 0:01:04]} a5 {[%emt 0:01:14]} 25. b3 {[%emt 0:00:32]} g5 {[%emt 0:02:08]} 26. c4 {[%emt 0:01:10]} d4 {[%emt 0:01:12]} 27. Bxc6 {[%emt 0:00:07]} Qxc6 {[%emt 0:00:05]} 28. exd4 {[%emt 0:00:05]} cxd4 {[%emt 0:00:35]} 29. Qb2 {[%emt 0:00:23]} Qc5 {[%emt 0:00:25]} 30. Rd3 {[%emt 0:00:10]} Kf7 {[%emt 0:00:10]} 31. Qd2 {[%emt 0:00:02]} Kf6 {[%emt 0:00:10]} 32. Qe2 {[%emt 0:00:24]} h6 {[%emt 0:00:12]} 33. Qh5 {[%emt 0:00:04]} Kg7 {[%emt 0:00:03]} 34. Re1 {[%emt 0:01:01]} Rf6 {[%emt 0:00:13]} 35. Qe2 {[%emt 0:00:50]} Kf7 {[%emt 0:00:12]} 36. Qh5+ {[%emt 0:00:12]} Kg7 {[%emt 0:00:05]} 37. Qe2 {[%emt 0:00:03]} Kf7 {[%emt 0:00:13]} 38. Qh5+ {[%emt 0:00:22]} Kg7 {[%emt 0:00:01]} 39. Qe2 {[%emt 0:00:24]} Kf7 {[%emt 0:00:09]} 1/2-1/2

[Event "Kupreichik Memorial Rapid 2019"]
[Site "Minsk"]
[Date "2019.08.16"]
[Round "4.29"]
[White "Karlov, Egor"]
[Black "Rataika, Mikalai"]
[Result "1-0"]
[ECO "E73"]
[WhiteElo "1728"]
[BlackElo "1920"]
[Annotator "NA"]
[PlyCount "121"]
[EventDate "2019.08.15"]
[EventType "swiss"]
[EventCountry "BLR"]
[SourceTitle "playchess.com"]
[Source "ChessBase"]
[SourceQuality "1"]
[TimeControl "900+10"]

1. d4 {[%emt 0:00:00]} Nf6 {[%emt 0:00:00]} 2. c4 {[%emt 0:00:00]} g6 {[%emt 0:00:01]} 3. Nc3 {[%emt 0:00:00]} Bg7 {[%emt 0:00:03]} 4. e4 {[%emt 0:00:00]} d6 {[%emt 0:00:01]} 5. Be2 {[%emt 0:00:04]} O-O {[%emt 0:00:05]} 6. Be3 {[%emt 0:00:01]} e5 {[%emt 0:00:10]} 7. d5 {[%emt 0:00:02]} a5 {[%emt 0:01:03]} 8. g4 {[%emt 0:00:12]} Na6 {[%emt 0:01:06]} 9. h4 {[%emt 0:00:21]} Nc5 {[%emt 0:00:33]} 10. f3 {[%emt 0:00:24]} Ne8 {[%emt 0:00:28]} 11. Qd2 {[%emt 0:00:18]} f5 {[%emt 0:00:12]} 12. gxf5 {[%emt 0:01:17]} gxf5 {[%emt 0:00:02]} 13. Bh6 {[%emt 0:01:53]} f4 {[%emt 0:00:09]} 14. Bxg7 {[%emt 0:00:22]} Nxg7 {[%emt 0:00:05]} 15. O-O-O {[%emt 0:00:11]} Nh5 {[%emt 0:00:29]} 16. Bf1 {[%emt 0:01:01]} Rf7 {[%emt 0:01:35]} 17. Rh2 {[%emt 0:00:51]} Nd7 {[%emt 0:01:56]} 18. Bh3 {[%emt 0:00:59]} Ndf6 {[%emt 0:01:13]} 19. Bxc8 Rxc8 {[%emt 0:00:11]} 20. Nh3 {[%emt 0:01:01]} h6 {[%emt 0:00:14]} 21. Rg1+ {[%emt 0:02:10]} Rg7 {[%emt 0:01:45]} 22. Rxg7+ {[%emt 0:00:53]} Nxg7 {[%emt 0:00:13]} 23. Qg2 {[%emt 0:00:32]} Nfh5 {[%emt 0:00:54]} 24. Nf2 {[%emt 0:00:59]} Ng3 {[%emt 0:00:59]} 25. Nh1 {[%emt 0:00:28]} N7h5 {[%emt 0:00:51]} 26. Ne2 {[%emt 0:00:27]} Kh7 {[%emt 0:00:24]} 27. Nhxg3 {[%emt 0:00:10]} fxg3 {[%emt 0:00:04]} 28. Nxg3 {[%emt 0:00:18]} Nf4 {[%emt 0:00:33]} 29. Qf1 {[%emt 0:01:12]} Qg8 {[%emt 0:01:15]} 30. Ne2 {[%emt 0:00:58]} Qf7 {[%emt 0:01:25]} 31. Kc2 {[%emt 0:01:57]} Rf8 {[%emt 0:00:48]} 32. Qf2 {[%emt 0:00:59]} Qh5 {[%emt 0:00:13]} 33. Ng3 {[%emt 0:00:05]} Qe8 {[%emt 0:00:09]} 34. Nf5 {[%emt 0:00:01]} Qa4+ {[%emt 0:00:03]} 35. Kb1 {[%emt 0:00:02]} Qxc4 {[%emt 0:00:07]} 36. Rh1 {[%emt 0:00:21]} Rg8 {[%emt 0:00:14]} 37. Rg1 {[%emt 0:00:06]} Qd3+ {[%emt 0:00:11]} 38. Ka1 {[%emt 0:00:05]} Rxg1+ {[%emt 0:00:28]} 39. Qxg1 {[%emt 0:00:02]} Ng2 {[%emt 0:00:10]} 40. a3 {[%emt 0:00:20]} Qxf3 {[%emt 0:00:04]} 41. Qc1 {[%emt 0:00:24]} Nf4 {[%emt 0:00:10]} 42. Qxc7+ {[%emt 0:00:03]} Kg6 {[%emt 0:00:15]} 43. Qg7+ {[%emt 0:00:21]} Kh5 {[%emt 0:00:01]} 44. Ng3+ {[%emt 0:00:03]} Kxh4 {[%emt 0:00:17]} 45. Nf5+ {[%emt 0:00:05]} Kh3 {[%emt 0:00:19]} 46. Qxh6+ {[%emt 0:00:05]} Qh5 {[%emt 0:00:09]} 47. Qxh5+ {[%emt 0:00:09]} Nxh5 {[%emt 0:00:02]} 48. Nxd6 {[%emt 0:00:01]} Nf6 {[%emt 0:00:15]} 49. Nxb7 {[%emt 0:00:08]} a4 {[%emt 0:00:00]} 50. d6 {[%emt 0:00:01]} Kg4 {[%emt 0:00:02]} 51. Nc5 {[%emt 0:00:06]} Kf4 {[%emt 0:00:02]} 52. Kb1 {[%emt 0:00:03]} Ke3 {[%emt 0:00:07]} 53. d7 {[%emt 0:00:28]} Nxd7 {[%emt 0:00:02]} 54. Nxd7 {[%emt 0:00:01]} Kxe4 {[%emt 0:00:01]} 55. Kc2 {[%emt 0:00:01]} Kd4 {[%emt 0:00:03]} 56. Nxe5 {[%emt 0:00:04]} Kxe5 {[%emt 0:00:01]} 57. Kc3 {[%emt 0:00:00]} Kd5 {[%emt 0:00:12]} 58. Kb4 {[%emt 0:00:01]} Kd4 {[%emt 0:00:04]} 59. Kxa4 {[%emt 0:00:02]} Kc4 {[%emt 0:00:01]} 60. b3+ {[%emt 0:00:01]} Kc3 {[%emt 0:00:01]} 61. b4 {[%emt 0:00:05]} 1-0

[Event "Kupreichik Memorial Rapid 2019"]
[Site "Minsk"]
[Date "2019.08.16"]
[Round "4.30"]
[White "Strizhnev, Ivan"]
[Black "Talma, Sergei"]
[Result "0-1"]
[ECO "B28"]
[WhiteElo "1394"]
[BlackElo "1882"]
[Annotator "NA"]
[PlyCount "77"]
[EventDate "2019.08.15"]
[EventType "swiss"]
[EventCountry "BLR"]
[SourceTitle "playchess.com"]
[Source "ChessBase"]
[SourceQuality "1"]
[TimeControl "900+10"]

1. e4 {[%emt 0:00:00]} c5 {[%emt 0:00:00]} 2. Nf3 {[%emt 0:00:01]} a6 {[%emt 0:00:00]} 3. Nc3 {[%emt 0:00:06]} Nc6 {[%emt 0:00:00]} 4. d4 {[%emt 0:00:04]} cxd4 {[%emt 0:00:00]} 5. Nxd4 {[%emt 0:00:02]} e5 {[%emt 0:00:01]} 6. Nb3 {[%emt 0:00:03]} Nf6 {[%emt 0:00:09]} 7. Bg5 {[%emt 0:00:09]} Bb4 {[%emt 0:00:17]} 8. Be2 {[%emt 0:00:23]} h6 {[%emt 0:00:06]} 9. Bxf6 {[%emt 0:00:47]} Bxc3+ {[%emt 0:00:06]} 10. bxc3 {[%emt 0:00:03]} Qxf6 {[%emt 0:00:02]} 11. O-O {[%emt 0:00:09]} O-O {[%emt 0:00:14]} 12. Nd2 {[%emt 0:00:38]} Na5 {[%emt 0:01:14]} 13. Rb1 {[%emt 0:01:15]} Qc6 {[%emt 0:01:12]} 14. c4 {[%emt 0:01:33]} d6 {[%emt 0:00:09]} 15. Qc1 {[%emt 0:00:52]} Be6 {[%emt 0:00:34]} 16. Rb4 {[%emt 0:00:52]} b6 {[%emt 0:03:52]} 17. Qb2 {[%emt 0:00:57]} Rab8 {[%emt 0:00:08]} 18. Rb1 {[%emt 0:00:08]} Rfc8 {[%emt 0:00:58]} 19. Rxb6 {[%emt 0:01:32]} Rxb6 {[%emt 0:00:15]} 20. Qxb6 {[%emt 0:00:02]} Qxb6 {[%emt 0:04:25]} 21. Rxb6 {[%emt 0:00:06]} Bxc4 {[%emt 0:00:02]} 22. Nxc4 {[%emt 0:00:50]} Nxc4 {[%emt 0:00:02]} 23. Rxa6 {[%emt 0:00:12]} f5 {[%emt 0:01:25]} 24. exf5 {[%emt 0:01:24]} d5 {[%emt 0:00:14]} 25. f3 {[%emt 0:00:34]} Ne3 {[%emt 0:00:28]} 26. Bd3 {[%emt 0:00:39]} Nxc2 {[%emt 0:00:31]} 27. a3 {[%emt 0:01:36]} Ne1 {[%emt 0:01:09]} 28. Be2 {[%emt 0:00:19]} Rc2 {[%emt 0:00:35]} 29. Bf1 {[%emt 0:00:49]} d4 {[%emt 0:00:49]} 30. Ra5 {[%emt 0:01:13]} d3 {[%emt 0:00:15]} 31. Rxe5 {[%emt 0:00:13]} d2 {[%emt 0:00:02]} 32. Be2 {[%emt 0:00:52]} Nd3 {[%emt 0:00:24]} 33. Bd1 {[%emt 0:01:46]} Rc1 {[%emt 0:00:20]} 34. Re8+ {[%emt 0:00:18]} Kf7 {[%emt 0:00:19]} 35. Kf1 {[%emt 0:00:12]} Rxd1+ {[%emt 0:00:16]} 36. Ke2 {[%emt 0:00:03]} Re1+ {[%emt 0:00:04]} 37. Kxd2 {[%emt 0:00:03]} Rxe8 {[%emt 0:00:01]} 38. Kxd3 Ra8 39. Kd4 0-1

[Event "Kupreichik Memorial Rapid 2019"]
[Site "Minsk"]
[Date "2019.08.16"]
[Round "4.31"]
[White "Melekhov, Artyom"]
[Black "Masjuk, Vladimir"]
[Result "0-1"]
[ECO "C44"]
[WhiteElo "1471"]
[BlackElo "1900"]
[Annotator "NA"]
[PlyCount "84"]
[EventDate "2019.08.15"]
[EventType "swiss"]
[EventCountry "BLR"]
[SourceTitle "playchess.com"]
[Source "ChessBase"]
[SourceQuality "1"]
[TimeControl "900+10"]

1. e4 {[%emt 0:00:00]} e5 {[%emt 0:00:00]} 2. Nf3 {[%emt 0:00:00]} Nc6 {[%emt 0:00:00]} 3. d4 {[%emt 0:00:00]} exd4 {[%emt 0:00:00]} 4. Nxd4 {[%emt 0:00:00]} d6 {[%emt 0:00:00]} 5. Bc4 {[%emt 0:00:01]} Nf6 {[%emt 0:00:05]} 6. Nc3 {[%emt 0:00:02]} Be7 {[%emt 0:00:02]} 7. O-O {[%emt 0:00:10]} Ne5 {[%emt 0:00:03]} 8. Be2 {[%emt 0:00:22]} O-O {[%emt 0:00:07]} 9. f4 {[%emt 0:00:33]} Ng6 {[%emt 0:00:10]} 10. Nf3 {[%emt 0:00:40]} Bg4 {[%emt 0:00:54]} 11. f5 {[%emt 0:00:24]} Bxf3 {[%emt 0:00:06]} 12. Rxf3 {[%emt 0:00:10]} Ne5 {[%emt 0:00:03]} 13. Rg3 {[%emt 0:00:02]} c6 {[%emt 0:00:15]} 14. Bf4 {[%emt 0:01:17]} Qb6+ {[%emt 0:00:19]} 15. Kh1 {[%emt 0:00:15]} Rad8 {[%emt 0:00:22]} 16. Qc1 {[%emt 0:00:21]} Kh8 {[%emt 0:00:27]} 17. Be3 {[%emt 0:04:22]} Qc7 {[%emt 0:00:04]} 18. Qf1 {[%emt 0:00:11]} b5 {[%emt 0:00:16]} 19. a3 {[%emt 0:00:01]} a5 {[%emt 0:00:11]} 20. b4 {[%emt 0:02:03]} axb4 {[%emt 0:01:43]} 21. axb4 {[%emt 0:00:01]} Ra8 {[%emt 0:00:03]} 22. Rb1 {[%emt 0:01:14]} Ra3 {[%emt 0:00:19]} 23. Bc1 {[%emt 0:00:02]} Ra6 {[%emt 0:00:28]} 24. Bb2 {[%emt 0:00:07]} Rfa8 {[%emt 0:00:13]} 25. Qf4 {[%emt 0:00:48]} Nfd7 {[%emt 0:00:51]} 26. Rh3 {[%emt 0:00:47]} Bf6 {[%emt 0:00:16]} 27. g4 {[%emt 0:00:17]} Qd8 {[%emt 0:00:04]} 28. Bc1 {[%emt 0:00:57]} Nc4 {[%emt 0:00:31]} 29. Bxc4 {[%emt 0:00:28]} bxc4 {[%emt 0:00:01]} 30. g5 {[%emt 0:00:06]} Be5 {[%emt 0:00:02]} 31. Qh4 {[%emt 0:00:49]} Nf8 {[%emt 0:01:17]} 32. Qh5 {[%emt 0:00:50]} Ra1 {[%emt 0:01:55]} 33. Rxa1 {[%emt 0:02:57]} Rxa1 {[%emt 0:00:02]} 34. Qd1 {[%emt 0:00:02]} Bf4 {[%emt 0:00:13]} 35. Ne2 {[%emt 0:00:14]} Bxc1 {[%emt 0:00:03]} 36. g6 {[%emt 0:00:14]} fxg6 {[%emt 0:00:24]} 37. Nxc1 {[%emt 0:00:10]} gxf5 {[%emt 0:00:06]} 38. Rg3 {[%emt 0:00:09]} fxe4 {[%emt 0:00:15]} 39. Kg2 {[%emt 0:00:06]} Ng6 {[%emt 0:00:09]} 40. Qd2 {[%emt 0:00:13]} d5 {[%emt 0:00:07]} 41. Ne2 {[%emt 0:00:09]} Qf6 {[%emt 0:00:07]} 42. c3 {[%emt 0:00:12]} Qf1# {[%emt 0:00:08]} 0-1